Cogmind - Beta 15 @@@ ROGUE MODE // 2025.07.07 @ 21:51:22 Player: mEkbOk Result: Destroyed by P-60 Hacker with Shock Rifle Performance ------------- Evolutions (2) 1000 Regions Visited (4) 800 Robots Destroyed (100) 500 Value Destroyed (3470) 3470 Prototype IDs (1) 20 Alien Tech Used (0) 0 Bonus (1229) 1229 TOTAL SCORE: 7019 Bonus ------- High Alert Combat Kills 391 Follower Combat Kills 138 Entered Garrisons 200 Used RIF Installer 500 Cogmind --------- Core Integrity 0/550 Matter 283/300 Energy 385/405 System Corruption 6% Temperature Hot (277) Movement Treading (160) Location -8/Garrison Parts ------- > --- POWER (2) -------- Improved Ion Engine Nuclear Core > --- PROPULSION (4) --- Light Treads Light Treads > --- UTILITY (3) ------ Improved Heat Sink Layered Medium Armor Plating > --- WEAPON (2) ------- Pulse Rifle Gauss Rifle > --- INVENTORY (5) ---- Active Sensor Suite Graphene Brace Coil Gun Peak State ------------ > --- POWER ------------ Improved Deuterium Engine Reinforced Deuterium Engine > --- PROPULSION ------- Improved Treads Improved Treads Armored Treads Armored Treads > --- UTILITY ---------- Improved Cooling System Small Storage Unit Weapon Cycler > --- WEAPON ----------- Heavy Particle Gun Heavy Particle Gun > --- INVENTORY -------- Improved Cooling System Improved Sensor Array Active Sensor Suite Graphene Brace Heavy Particle Gun Heavy Particle Gun [Rating: 39] Favorites ----------- Power Improved Ion Engine Engine Improved Ion Engine Power Core Light Nuclear Core Propulsion Light Treads Treads Light Treads Leg Aluminum Leg Utility Small Storage Unit Device Heat Sink Storage Small Storage Unit Processor Targeting Computer Protection Hardened Light Armor Plating Weapon Heavy Particle Gun Energy Gun Heavy Particle Gun Ballistic Gun Gauss Rifle Build | -11 -10 -9 -8 -8 ------- Run | Yrd Mat Mat Mat Gar Slots Evolved 4 | . . 2 2 . Power 1 | . . 1 . . Propulsion 2 | . . . 2 . Utility 1 | . . 1 . . Weapon . | . . . . . Parts Attached 88 | 7 5 23 13 40 Power 20 | 2 2 7 3 6 Engine 16 | 2 2 6 2 4 Core 4 | . . 1 1 2 Reactor . | . . . . . Propulsion 30 | 2 . 6 5 17 Treads 18 | 2 . 6 5 5 Leg 12 | . . . . 12 Wheel . | . . . . . Hover . | . . . . . Flight . | . . . . . Utility 22 | 1 1 6 4 10 Device 16 | . . 5 3 8 Storage 2 | 1 . 1 . . Processor 1 | . 1 . . . Hackware . | . . . . . Protection 3 | . . . 1 2 Artifact . | . . . . . Weapon 16 | 2 2 4 1 7 Energy Gun 11 | 1 1 3 1 5 Energy Cannon . | . . . . . Ballistic Gun 5 | 1 1 1 . 2 Ballistic Cannon . | . . . . . Launcher . | . . . . . Special Weapon . | . . . . . Impact Weapon . | . . . . . Slashing Weapon . | . . . . . Piercing Weapon . | . . . . . Special Melee Weapon . | . . . . . Unidentified Prototypes . | . . . . . Parts Lost 35 | . 2 5 5 23 Power 7 | . 1 1 2 3 Propulsion 14 | . . 1 2 11 Utility 9 | . . 2 1 6 Weapon 5 | . 1 1 . 3 Highest Loss Streak 5 | . 2 3 4 5 To Critical Strikes 1 | . . . . 1 Average Backups 5 | 1 4 7 6 3 Power . | . 2 . . . Propulsion 1 | . . 3 1 . Utility 2 | . 1 1 3 2 Weapon 1 | 1 . 1 1 . Tool/Special . | . . . . . Unused Backups 11 | . 1 3 4 3 Power 1 | . 1 . . . Propulsion 5 | . . 3 2 . Utility 4 | . . . 2 2 Weapon 1 | . . . . 1 Tool/Special . | . . . . . Average Slot Usage (%) 92 | . 84 95 97 90 Engine 14 | . 13 20 16 11 Core 1 | . . . . 2 Treads 23 | . 27 21 35 19 Leg 5 | . . . . 13 Device 16 | . . 19 12 21 Storage 7 | . 14 11 9 2 Protection 1 | . . . 4 1 Energy Gun 14 | . 12 18 18 11 Ballistic Gun 4 | . 14 2 . 5 Peak Build Rating 39 | 6 7 22 39 38 Average Rating 22 | 4 5 16 30 29 On Entrance 14 | . 6 7 22 38 Naked Turns . | . . . . . Heaviest Build 52 | 13 13 27 39 52 Greatest Support 92 | 40 40 46 92 83 Greatest Overweight (x) 4 | 4 . 1 . 3 Average Overweight (x) . | . . . . . Largest Inventory Capacity 8 | 8 8 8 8 8 Average Capacity 7 | 7 8 8 8 5 Most Carried 8 | 5 8 8 8 8 Average Carried 6 | 2 4 7 7 5 Final Capacity 8 | 8 8 8 8 5 Final Carried 8 | 2 8 8 8 5 Class Distribution -------------------- 62% | Scavenger-Mutant 37% | Mutant Dominant Class ---------------- Mutant | -10/Materials Scavenger-Mutant | -9/Materials Mutant | -8/Materials Scavenger-Mutant | -8/Garrison Resources | -11 -10 -9 -8 -8 ----------- Run | Yrd Mat Mat Mat Gar Matter Collected 1502 | 157 265 330 150 600 Remotely . | . . . . . Salvage Created 3860 | . 402 816 1093 1549 Parts 236 | . 25 60 73 78 Haulers Intercepted . | . . . . . Recyclers Shooed 1 | . 1 . . . Parts Field Recycled . | . . . . . Retrieved Matter . | . . . . . Parts Self-Destructed . | . . . . . Prevented . | . . . . . Kills | -11 -10 -9 -8 -8 ------- Run | Yrd Mat Mat Mat Gar Combat Hostiles Destroyed 91 | . 10 25 25 31 Guns 89 | . 10 24 25 30 Classes Destroyed 12 | . 4 1 5 2 Worker 2 | . 1 1 . . Builder 1 | . . . 1 . Watcher 6 | . 1 2 2 1 Swarmer 24 | . 3 14 7 . Cutter 2 | . . . 2 . Grunt 39 | . 7 5 10 17 Duelist 1 | . . . 1 . Sentry 14 | . . 6 2 6 Specialist 7 | . . . 2 5 Hunter 1 | . . . . 1 Programmer 2 | . . . . 2 Heavy 1 | . . . 1 . Best Kill Streak 10 | . 5 10 8 8 Combat Bots Only 10 | . 3 10 7 8 Max Kills in Single Turn 2 | . 1 2 1 2 Gunslinging 1 | . . 1 . 1 Exploded . | . . . . . Melee . | . . . . . Uniques/NPCs Destroyed . | . . . . . Combat | -11 -10 -9 -8 -8 -------- Run | Yrd Mat Mat Mat Gar Hostile Shots Fired 668 | . 67 167 123 311 Missed 190 | . 11 41 35 103 Hits 478 | . 56 126 88 208 Melee 3 | . . . 3 . Projectile 475 | . 56 126 85 208 Critical Strikes 13 | . 1 3 2 7 Damage Taken 6577 | . 682 1231 1396 3268 Core 906 | . 103 238 132 433 Absorbed by Shields . | . . . . . Ignored by Resistances 28 | . . . . 28 Regen/Repaired (Parts) 251 | . 96 155 . . Core Remaining (%) 66 | 100 58 40 . . Volleys Fired 320 | . 42 68 78 132 Largest 2 | . 2 2 2 2 Hottest 120 | . 60 110 110 120 Shots Fired 570 | . 75 132 156 207 Gun 570 | . 75 132 156 207 Cannon . | . . . . . Launcher . | . . . . . Special . | . . . . . Kinetic 86 | . 42 24 . 20 Thermal 484 | . 33 108 156 187 Explosive . | . . . . . Electromagnetic . | . . . . . Robot Hit Streak 16 | . 6 16 10 16 Robot Miss Streak 10 | . 10 9 3 4 Penetration Max 1 | . . . . 1 Secondary Targets 14 | . 1 3 5 5 Max Gunslinging Chain 1 | . 1 1 1 1 Shots Hit Robots 358 | . 42 81 89 146 Core Hits 164 | . 20 34 47 63 Critical Kills . | . . . . . Critical Parts Destroyed 1 | . . . . 1 Critical Strikes 17 | . . 5 4 8 Burn 16 | . . 5 4 7 Destroy 1 | . . . . 1 Melee Attacks . | . . . . . Impact . | . . . . . Slashing . | . . . . . Piercing . | . . . . . Sneak Attacks . | . . . . . Combat Hostiles . | . . . . . Follow-up Attacks . | . . . . . Damage Inflicted 6628 | . 522 1382 1866 2858 Guns 6628 | . 522 1382 1866 2858 Cannons . | . . . . . Explosions . | . . . . . Melee . | . . . . . Ramming . | . . . . . Kinetic 878 | . 279 193 . 406 Thermal 5750 | . 243 1189 1866 2452 Explosive . | . . . . . Electromagnetic . | . . . . . Impact . | . . . . . Slashing . | . . . . . Piercing . | . . . . . Highest Corruption 6 | . 1 . . 6 Average Corruption 1 | . 1 . . 4 Corruption Purged . | . . . . . Corruption Blocked . | . . . . . Effects 2 | . . . . 2 Heat Flow Errors 1 | . . . . 1 Data Loss (minor) 1 | . . . . 1 Overload Shots . | . . . . . Overflow Damage . | . . . . . Projectiles . | . . . . . Explosions . | . . . . . Melee . | . . . . . Knockbacks . | . . . . . Impact . | . . . . . Kinetic . | . . . . . Secondary . | . . . . . Self-Inflicted Damage . | . . . . . Shots . | . . . . . Rammed . | . . . . . Targets Rammed . | . . . . . Kicked . | . . . . . Crushed . | . . . . . Highest Temperature 570 | . 132 189 342 570 Average Temperature 118 | . 41 43 101 178 Received Heat Transfer 2070 | . 270 270 468 1062 Effects 53 | . . . 3 50 Shutdowns 12 | . . . 1 11 Energy Bleed 5 | . . . . 5 Interference 8 | . . . 2 6 Matter Decay 4 | . . . . 4 Short Circuit 4 | . . . . 4 Damage (minor) 3 | . . . . 3 Damage (major) 16 | . . . . 16 Damage (core) 1 | . . . . 1 Siege Activations . | . . . . . Martial Activations . | . . . . . Shielding Activations . | . . . . . Robots Disrupted . | . . . . . Combat Hostiles . | . . . . . Robots Corrupted . | . . . . . Combat Hostiles . | . . . . . Parts Fried . | . . . . . Impact Corruptions . | . . . . . Robots Melted 2 | . . 1 . 1 Combat Hostiles 2 | . . 1 . 1 Parts Melted 21 | . . 7 7 7 Heat Transferred 12751 | . 550 2766 3885 5550 Parts Sabotaged . | . . . . . Parts Stolen . | . . . . . Parts Stripped . | . . . . . Power Chain Reactions . | . . . . . Alert | -11 -10 -9 -8 -8 ------- Run | Yrd Mat Mat Mat Gar Maximum Alert Level 4 | . . 1 1 4 Low Security (%) 34 | 100 100 36 61 . Level 1 26 | . . 63 38 6 Level 2 19 | . . . . 46 Level 3 19 | . . . . 46 Level 4 . | . . . . 1 Level 5 . | . . . . . High Security . | . . . . . Max Security . | . . . . . Peak Influence 1181 | . 82 292 395 1181 Initial 252 | . . 18 82 252 Average 386 | . 29 169 179 732 Influence Increases 2938 | . 273 746 710 1209 Destroy 0b10 Robot/C 1900 | . 200 500 500 700 Destroy 0b10 Robot/NC 45 | . 10 15 15 5 Destroy Leader 310 | . 42 124 114 30 Allied During Kill 7 | . . . . 7 Successful Hack 61 | . 21 30 3 7 Disable Machine 45 | . . 15 30 . Anti-Garrison Action 400 | . . . . 400 Destroy Structure 5 | . . 2 3 . Lose Combat Pursuer 165 | . . 60 45 60 Influence Decreases 1747 | . 227 596 517 407 Entered New Map 279 | . . 28 114 137 Time Decay 1054 | . 207 494 353 . Lost Part 350 | . 20 50 50 230 Lost Ally 40 | . . . . 40 Purge Threat 24 | . . 24 . . Squads Dispatched 9 | . 2 1 6 . Investigation 3 | . 1 . 2 . Extermination . | . . . . . Reinforcement 6 | . 1 1 4 . Assault . | . . . . . Garrison . | . . . . . Intercept . | . . . . . Searches Triggered . | . . . . . Construction Impeded . | . . . . . Haulers Reinforced . | . . . . . Active Scanning Responses . | . . . . . Cargo Convoy Interrupts . | . . . . . Stealth | -11 -10 -9 -8 -8 --------- Run | Yrd Mat Mat Mat Gar Distress Signals 11 | . 2 4 2 3 Communications Jammed . | . . . . . Distress Signals . | . . . . . Times Spotted 133 | . 16 38 31 48 Peak Tracking Total 9 | . 4 7 9 6 Tactical Retreats 7 | . . 3 2 2 Traps | -11 -10 -9 -8 -8 ------- Run | Yrd Mat Mat Mat Gar Traps Triggered 2 | . 1 . 1 . Indirectly . | . . . . . Trap Hack Attempts . | . . . . . Triggered . | . . . . . Disarmed . | . . . . . Reprogrammed . | . . . . . Reused . | . . . . . Traps Extracted . | . . . . . Installed . | . . . . . Triggered . | . . . . . Machines | -11 -10 -9 -8 -8 ---------- Run | Yrd Mat Mat Mat Gar Machines Disabled 4 | . . 2 2 . Max in Single Turn 1 | . . 1 1 . Garrison Relay 1 | . . . . 1 Phase Generator 1 | . . . . 1 Machines Repaired . | . . . . . Machines Dismantled . | . . . . . Machines Sabotaged . | . . . . . Overloaded Fab Kills . | . . . . . Hacking | -11 -10 -9 -8 -8 --------- Run | Yrd Mat Mat Mat Gar Machines Accessed 18 | . 4 9 3 2 Terminals 12 | . 3 5 2 2 Fabricators . | . . . . . Repair Stations 3 | . 1 2 . . Recycling Units . | . . . . . Scanalyzers 2 | . . 2 . . Garrison Access 1 | . . . 1 . Total Hacks 52 | . 14 30 6 2 Successful 32 | . 7 21 3 1 Failed 20 | . 7 9 3 1 Catastrophic 4 | . 1 1 1 1 Database Lockouts . | . . . . . Manual 14 | . 2 7 4 1 Terminals 31 | . 11 14 4 2 Fabricators . | . . . . . Repair Stations 11 | . 3 8 . . Recycling Units . | . . . . . Scanalyzers 8 | . . 8 . . Garrison Access 2 | . . . 2 . Terminal Hacks 16 | . 5 9 1 1 Record 4 | . 3 1 . . Open Door 1 | . . . . 1 Terminal Index 1 | . . 1 . . Alert Level 1 | . . 1 . . Unreport Threat 1 | . . 1 . . Locate Traps 4 | . 1 2 1 . Maintenance Status 1 | . . 1 . . Hauler Manifests 2 | . 1 1 . . Zone Layout 1 | . . 1 . . Fabricator Hacks . | . . . . . Repair Station Hacks 7 | . 2 5 . . Scan Component 4 | . 1 3 . . Repair 3 | . 1 2 . . Recycling Unit Hacks . | . . . . . Scanalyzer 7 | . . 7 . . Insert Component 3 | . . 3 . . Analyze 4 | . . 4 . . Garrison Access Hacks 1 | . . . 1 . Unlock Access 1 | . . . 1 . Unauthorized Hacks 1 | . . . 1 . Terminals 1 | . . . 1 . Track 1 | . . . 1 . Fabricators . | . . . . . Repair Stations . | . . . . . Recycling Units . | . . . . . Scanalyzers . | . . . . . Garrison Access . | . . . . . Data Cores Recovered . | . . . . . Used . | . . . . . Hacking Detections 14 | . 4 7 3 . Full Trace Events 3 | . 2 . 1 . Feedback Events 1 | . 1 . . . Corruption 1 | . 1 . . . Feedback Blocked . | . . . . . Robot Schematics Acquired . | . . . . . Robots Built . | . . . . . Authchips . | . . . . . Time . | . . . . . Total Robot Build Rating . | . . . . . Part Schematics Acquired 3 | . . 3 . . Parts Built . | . . . . . Authchips . | . . . . . Time . | . . . . . Total Part Build Rating . | . . . . . Parts Repaired 3 | . 1 2 . . Time 146 | . 26 120 . . Parts Recycled . | . . . . . Recycled Matter . | . . . . . Retrieved Matter . | . . . . . Retrieved Components . | . . . . . Parts Scanalyzed 3 | . . 3 . . Part Schematics Acquired 3 | . . 3 . . Parts Damaged . | . . . . . Bothacking | -11 -10 -9 -8 -8 ------------ Run | Yrd Mat Mat Mat Gar Used RIF Installer 1 | . . . . 1 Robots Hacked . | . . . . . Non-combat . | . . . . . Combat . | . . . . . Robot Hacks Applied . | . . . . . Relay Couplers Released 5 | . . . . 5 Machine Destruction 5 | . . . . 5 Fabnet Peak Effective % . | . . . . . Robots Rewired . | . . . . . Allies Hacked . | . . . . . Hacks Repelled . | . . . . . Allies | -11 -10 -9 -8 -8 -------- Run | Yrd Mat Mat Mat Gar Total Allies 2 | . . . . 2 Largest Group 2 | . . . . 2 Highest-Rated Group 62 | . . . . 62 Highest-Rated Ally 31 | . . . . 31 Total Orders . | . . . . . Ally Attacks 19 | . . . . 19 Total Damage 295 | . . . . 295 Kills 4 | . . . . 4 Allies Corrupted . | . . . . . Allies Melted . | . . . . . Intel | -11 -10 -9 -8 -8 ------- Run | Yrd Mat Mat Mat Gar Active Infowar (turns) 1268 | . . . . 1268 Sensors 144 | . . . . 144 Traps 1124 | . . . . 1124 Robot Analysis Total . | . . . . . Derelict Logs Recovered . | . . . . . Drone Launches . | . . . . . Drone Recoveries . | . . . . . Exploration | -11 -10 -9 -8 -8 ------------- Run | Yrd Mat Mat Mat Gar Turns Passed 5428 | 84 684 1568 819 2273 Spaces Moved 2381 | 52 324 696 263 1046 Core 26 | 26 . . . . Treads 1860 | 26 324 696 263 551 Legs 495 | . . . . 495 Wheels . | . . . . . Hover . | . . . . . Flight . | . . . . . Fastest Speed 50 | 50 160 160 160 120 Average Speed 152 | 133 160 160 162 144 Slowest Speed 330 | 250 160 240 165 330 Overloaded Moves . | . . . . . Propulsion Burnouts . | . . . . . Robots Hopped . | . . . . . Potential Cave-ins . | . . . . . Cave-ins Triggered . | . . . . . Exploration Rate (%) 51 | 4 48 71 34 98 Regions Visited 4 Branch Regions . Pre-discovered Areas . | . . . . . Known Exits Taken 1 | . . . 1 . Unknown Exits Taken 3 | 1 1 1 . . Scrap Searched . | . . . . . Spaces Dug . | . . . . . Terrain Destroyed . | . . . . . Melee . | . . . . . Projectile . | . . . . . AOE . | . . . . . Terrain Rammed . | . . . . . Walls Destroyed . | . . . . . Machines Disabled . | . . . . . Actions | -11 -10 -9 -8 -8 --------- Run | Yrd Mat Mat Mat Gar Total 3632 | 66 416 1020 509 1621 Wait 708 | . 25 188 135 360 Move 2378 | 51 323 695 263 1046 Hop . | . . . . . Pick Up 70 | 8 15 23 9 15 Fast Attach 31 | . . 3 5 23 Attach 29 | 6 4 9 3 7 Detach . | . . . . . Swap 39 | 1 2 16 6 14 Drop 57 | . 5 18 10 24 Fire 320 | . 42 68 78 132 Melee . | . . . . . Ram . | . . . . . Kick . | . . . . . Crush . | . . . . . Escape Stasis . | . . . . . Rewire . | . . . . . Trap . | . . . . . Miscellaneous . | . . . . . Route ------- -11/Scrapyard -10/Materials (discovered 2 exits: *Mat x2) -9/Materials (discovered 3 exits: *Mat x2 / [*Min]) -8/Materials -8/Garrison (discovered 4 exits: [*Mat x4]) History --------- Turn | Location | Event 3 | -11/Scrapyard | Discovered new exit (range 15) 85 | -11/Scrapyard | Entered Materials 289 | -10/Materials | Discovered new exit (range 13) 314 | -10/Materials | Build established: Mutant 534 | -10/Materials | Discovered new exit (range 15) 589 | -10/Materials | Repaired Lgt. Treads 769 | -10/Materials | Entered another Materials area 769 | -9/Materials | Evolved 2 slots: Power x1, Utility x1 1099 | -9/Materials | Discovered new exit (range 12) 1170 | -9/Materials | Build established: Scavenger-Mutant 1295 | -9/Materials | Lost 3 parts (1p2u) 1302 | -9/Materials | Destroyed 10 combat bots 1618 | -9/Materials | Discovered new exit (range 16) 1831 | -9/Materials | Core integrity fell below 50% 2070 | -9/Materials | Discovered new exit (range 10) 2204 | -9/Materials | Repaired Hvy. Particle Gun 2267 | -9/Materials | Repaired Hvy. Particle Gun 2307 | -9/Materials | Build established: Mutant 2337 | -9/Materials | Entered another Materials area 2337 | -8/Materials | Evolved 2 slots: Propulsion x2 2823 | -8/Materials | Found Prototype Device 2895 | -8/Materials | Destroyed 7 combat bots 2898 | -8/Materials | Lost 4 parts (1p2n1u) 3156 | -8/Materials | Identified exit to Garrison 3156 | -8/Materials | Entered Garrison 3203 | -8/Garrison | Build established: Scavenger-Mutant 3222 | -8/Garrison | Phase Generator disabled 3228 | -8/Garrison | Triggered checkpoint 3291 | -8/Garrison | Lost 3 parts (2n1w) 3323 | -8/Garrison | Destroyed 8 combat bots 3418 | -8/Garrison | Triggered checkpoint 3427 | -8/Garrison | Garrison Relay disabled 3528 | -8/Garrison | Triggered checkpoint 3575 | -8/Garrison | Triggered checkpoint 3578 | -8/Garrison | Triggered checkpoint 3646 | -8/Garrison | Triggered checkpoint 3661 | -8/Garrison | Core integrity fell below 50% 3732 | -8/Garrison | Lost 5 parts (1p2n2u) 3886 | -8/Garrison | Discovered new exit (range 11) 3928 | -8/Garrison | Triggered checkpoint 3952 | -8/Garrison | Lost 3 parts (1n1u1w) 4027 | -8/Garrison | Core integrity fell below 20% 4066 | -8/Garrison | Lost 5 parts (2p3n) 4245 | -8/Garrison | Discovered new exit (range 10) 4300 | -8/Garrison | Installed Relay Interface Framework 4377 | -8/Garrison | Rescued a captive Derelict 4385 | -8/Garrison | Rescued a captive Derelict 4586 | -8/Garrison | Discovered new exit (range 10) 4812 | -8/Garrison | Triggered checkpoint 5056 | -8/Garrison | Triggered checkpoint 5078 | -8/Garrison | Triggered checkpoint 5090 | -8/Garrison | Discovered new exit (range 3) 5429 | -8/Garrison | Destroyed by P-60 Hacker with Shock Rifle Last Messages --------------- 05262_ Acquired Lyr. Medium Armor Plating. 05272_ Dropped Stasis Canceller. 05272_ Acquired Imp. Sensor Array. 05320_ Acquired 20 matter. 05401_ P-60 Hacker springs to life. 05402_ Slug penetrates P-60 Hacker. 05406_ ALERT: Garrison interior compromised. 05406_ P-60 Hacker resets P-60 Hacker, system corruption cleaned. 05409_ System corrupted: Component data lost. 05409_ Slug penetrates P-60 Hacker. 05409_ P-60 Hacker suffers critical hit (Destroy). 05409_ Destroyed Imp. Heat Sink. 05416_ Imp. Sensor Array destroyed. 05416_ Lgt. Treads destroyed. 05423_ Slug penetrates P-60 Hacker. 05426_ P-60 Hacker destroyed. 05426_ Switching to secondary target: P-60 Hacker. 05426_ Slug penetrates Wall. 05428_ System corrupted: Heat flow error (+250). 05429_ P-60 Hacker destroyed. Map ----- +----------------------------------------------------+ | | | | | | | ????????????????????????????????? | | ????????????????????????????????? | | ????????????????????????????????? | | ????????????????????????????????? | | ????????????????????????????????? | | ????????????????????????????????? | | ????????????????????????????????? | | ????????????????????????????????? | | ????????????????????????????????? | | ????????????????????????????????? | | ?????????#####??????????????????? | | ?????????# #??????????????????? | | ?????????# #??????????????????? | | ?????????# #??????????????????? | | ?????????# #??????????????????? | | ?????????# #??????????????????? | | ?????????# #??????????????????# | | ?????????# #??????????????????# | | ??######## #??????????????????# | | ??#!!# !## #??????????????????# | | ??#! !!## #??????????????????# | | ??# ##/### #################### | | ??# *!p%@%[ | | ??# ##/###! | | ??#! !!## | | ??#!!# !### # # ####### ##### | | ??######### # % ## ##??# #???# | | ????????## = ####??# #???# | | ???????### ## #### ##### | | ???????# # | | ???????# =% #### ##### | | ???????# # =# ##?## ##??# | | ???????# ## #?# #??# | | ???????# # # #### #### | | ???????### !=[=% ^ ^ | | ????????## =% %=* ^ ^ | | ????????## # ### ##%%######## | | ?????????## # ##=!#??????# | | ??????????### ####### *##?????# | | ????????????###?????# ! !#?????# | | ????????????????????#! !#?????# | | ????????????????????#! !#?????# | | ????????????????????#! !#?????# | | ????????????????????#!!!!#?????# | | ????????????????????## ##?????# | | ?????????????????????# #??????# | | ?????????????????????####??????## | +----------------------------------------------------+ Best States ------------- Heat Dissipation 58 Coolant Potential 50 Energy Generation 27 Energy Capacity 480 Matter Stores 300 Matter Capacity 300 Sight Range 16 Robot Scan Range 15 Terrain Scan Density 10 Armor Coverage 225 Resistance: KI 30 Weapon Cycling 15 Evasion (%) 55 Targeting Accuracy 5 Recoil Reduction 4 Item Schematics ----------------- Lgt. Treads | -9/Materials | Scanalyzed Ion Engine | -9/Materials | Scanalyzed Hvy. Particle Gun | -9/Materials | Scanalyzed Robot Schematics ------------------ None Fabricated ------------ Nothing Repaired ---------- Lgt. Treads | 31% | -10/Materials Hvy. Particle Gun | 22% | -9/Materials Hvy. Particle Gun | 36% | -9/Materials Alien Tech Used ----------------- None Achievements -------------- None Challenges ------------ None Game ------ Seed LightpackCompactInsulator Manual? 0 Play Time 01:23:58 Cumulative 22.1 hours Start 2025.06.29 @ 01:29:41 End 2025.07.07 @ 21:51:22 Sessions 3 Manual Loads 0 Difficulty Rogue Special Mode None Game No. 17 Rogue 17 Adventurer 0 Explorer 0 Win Type - Total 0 Types 0/0/0/0/0/0/0/0/0/0 Lore% 23 Gallery% 18 Achievement% 19 Wizard Run 0 Options --------- Layout 0 ASCII 0 Keyboard 0 Movement Mouse Keybinds 0 Fullscreen 2 Font 24/Smallcaps Map View 76x50 Zoom Use 0% Tactical HUD 1 Map Filters NONE Filters NONE Steam 1 RUN: 41108765-cfe5-4576-af04-911122eb2e2f